[Event "Early-Titled-Tuesday-Blitz-April-02-2024"]
[Site "Chess.com"]
[Date "2024.04.02"]
[Round "9"]
[White "chess123456s"]
[Black "PIwan"]
[Result "0-1"]
[WhiteElo "2578"]
[BlackElo "2458"]
[TimeControl "180+1"]
[EndTime "9:46:57 PDT"]
[Termination "PIwan won by resignation"]

1. d4 {[%clk 0:03:00.9]} 1... e6 {[%clk 0:03:00.9]} 2. e4 {[%clk 0:03:00.8]}
2... d5 {[%clk 0:03:01.1]} 3. Bd3 {[%clk 0:03:01.4]} 3... dxe4 {[%clk 0:03:01]}
4. Bxe4 {[%clk 0:03:02.3]} 4... Nf6 {[%clk 0:03:01.6]} 5. Bf3 {[%clk 0:03:02.8]}
5... c5 {[%clk 0:03:02.2]} 6. Ne2 {[%clk 0:03:03.2]} 6... Nc6 {[%clk 0:03:02.6]}
7. Be3 {[%clk 0:03:03]} 7... e5 {[%clk 0:02:53.3]} 8. Bxc6+ {[%clk 0:03:02.8]}
8... bxc6 {[%clk 0:02:52.9]} 9. dxe5 {[%clk 0:03:03.7]} 9... Qxd1+ {[%clk
0:02:53.5]} 10. Kxd1 {[%clk 0:03:04.5]} 10... Ng4 {[%clk 0:02:54.1]} 11. Nd2
{[%clk 0:03:05]} 11... Be7 {[%clk 0:02:51.4]} 12. Re1 {[%clk 0:02:58.7]} 12...
Nxe3+ {[%clk 0:02:46.7]} 13. fxe3 {[%clk 0:02:58.7]} 13... Be6 {[%clk
0:02:42.3]} 14. c3 {[%clk 0:02:55.7]} 14... O-O-O {[%clk 0:02:37.8]} 15. Kc2
{[%clk 0:02:55.5]} 15... Rd5 {[%clk 0:02:21.1]} 16. Nf4 {[%clk 0:02:47.8]} 16...
Rxe5 {[%clk 0:02:16]} 17. Nxe6 {[%clk 0:02:45.7]} 17... Rxe6 {[%clk 0:02:14.9]}
18. Nf3 {[%clk 0:02:44.7]} 18... Re8 {[%clk 0:02:12]} 19. Re2 {[%clk 0:02:20.2]}
19... f5 {[%clk 0:02:07.1]} 20. Rae1 {[%clk 0:02:19.9]} 20... g5 {[%clk
0:01:57.6]} 21. Nd2 {[%clk 0:02:13.1]} 21... g4 {[%clk 0:01:49.7]} 22. Nc4
{[%clk 0:02:11.2]} 22... Bg5 {[%clk 0:01:20.4]} 23. g3 {[%clk 0:02:01.7]} 23...
Kc7 {[%clk 0:01:15.8]} 24. Rf1 {[%clk 0:01:58.5]} 24... Re4 {[%clk 0:00:44.6]}
25. b3 {[%clk 0:01:56.6]} 25... f4 {[%clk 0:00:37.8]} 26. gxf4 {[%clk
0:01:38.5]} 26... Bxf4 {[%clk 0:00:29.8]} 27. Kd3 {[%clk 0:01:37.5]} 27... Bg5
{[%clk 0:00:15.6]} 28. Rf7+ {[%clk 0:01:36.9]} 28... R8e7 {[%clk 0:00:15.1]} 29.
Ref2 {[%clk 0:01:35.6]} 29... h5 {[%clk 0:00:14]} 30. R2f5 {[%clk 0:01:30]}
30... Rxf7 {[%clk 0:00:08.5]} 31. Rxf7+ {[%clk 0:01:28.3]} 31... Re7 {[%clk
0:00:07.7]} 32. Rf5 {[%clk 0:01:28.1]} 32... Rg7 {[%clk 0:00:07.7]} 33. Rxc5
{[%clk 0:01:21.9]} 33... h4 {[%clk 0:00:07.9]} 34. Ne5 {[%clk 0:01:18.4]} 34...
g3 {[%clk 0:00:04.2]} 35. hxg3 {[%clk 0:01:10.2]} 35... hxg3 {[%clk 0:00:04.2]}
36. Nf3 {[%clk 0:01:06.7]} 36... Be7 {[%clk 0:00:03.1]} 37. Rf5 {[%clk
0:00:55.2]} 37... g2 {[%clk 0:00:03]} 38. Ng1 {[%clk 0:00:55.3]} 38... Bd6
{[%clk 0:00:03.5]} 39. Ke2 {[%clk 0:00:53.6]} 39... Bg3 {[%clk 0:00:03.3]} 40.
Kf3 {[%clk 0:00:42.9]} 40... Bh2 {[%clk 0:00:02.9]} 41. Kf2 {[%clk 0:00:43.5]}
41... Kb6 {[%clk 0:00:02.9]} 42. Rh5 {[%clk 0:00:38.2]} 42... Bd6 {[%clk
0:00:03.1]} 43. b4 {[%clk 0:00:24]} 43... a6 {[%clk 0:00:03]} 44. a4 {[%clk
0:00:23.6]} 44... Be7 {[%clk 0:00:02.7]} 45. a5+ {[%clk 0:00:23.4]} 45... Kc7
{[%clk 0:00:03]} 46. Rh6 {[%clk 0:00:17.4]} 46... Bg5 {[%clk 0:00:02.9]} 47. Rh5
{[%clk 0:00:15.3]} 47... Bf6 {[%clk 0:00:03.3]} 48. Rc5 {[%clk 0:00:10.4]} 48...
Bh4+ {[%clk 0:00:03.5]} 49. Ke2 {[%clk 0:00:10.8]} 49... Rf7 {[%clk 0:00:03.8]}
50. Rh5 {[%clk 0:00:04.7]} 50... Rf2+ {[%clk 0:00:03.9]} 51. Kd3 {[%clk
0:00:04.9]} 51... Bf6 {[%clk 0:00:03.6]} 52. Rh7+ {[%clk 0:00:03.7]} 52... Kc8
{[%clk 0:00:03.3]} 53. Rf7 {[%clk 0:00:04]} 53... Rf1 {[%clk 0:00:03]} 54. Nh3
{[%clk 0:00:03.4]} 54... Be5 {[%clk 0:00:02.4]} 55. Re7 {[%clk 0:00:01.7]} 55...
Bd6 {[%clk 0:00:02.2]} 56. Re8+ {[%clk 0:00:02.3]} 56... Kd7 {[%clk 0:00:02.2]}
57. Rg8 {[%clk 0:00:03.2]} 57... Rd1+ {[%clk 0:00:02.7]} 58. Kc4 {[%clk
0:00:03.4]} 58... Rh1 {[%clk 0:00:03.6]} 59. Rg7+ {[%clk 0:00:02.3]} 59... Be7
{[%clk 0:00:04.1]} 60. Nf4 {[%clk 0:00:01.7]} 60... g1=Q {[%clk 0:00:03.9]} 61.
Rxg1 {[%clk 0:00:02.4]} 61... Rxg1 {[%clk 0:00:04.8]} 62. Nd3 {[%clk 0:00:03.1]}
62... Rd1 {[%clk 0:00:04.9]} 63. Ne5+ {[%clk 0:00:03.5]} 63... Kc7 {[%clk
0:00:05]} 64. Nf3 {[%clk 0:00:04.2]} 64... Rf1 {[%clk 0:00:04.7]} 65. Nd4 {[%clk
0:00:04.5]} 65... Re1 {[%clk 0:00:04.9]} 66. Ne6+ {[%clk 0:00:04.9]} 66... Kd6
{[%clk 0:00:05]} 67. Nc5 {[%clk 0:00:05.4]} 67... Rxe3 {[%clk 0:00:05]} 68. Nxa6
{[%clk 0:00:05.9]} 68... Bf6 {[%clk 0:00:05.5]} 69. Kb3 {[%clk 0:00:06.4]} 69...
Rxc3+ {[%clk 0:00:05.8]} 70. Ka4 {[%clk 0:00:07.1]} 70... Rc4 {[%clk 0:00:05.9]}
71. Nc5 {[%clk 0:00:05.9]} 71... Rxc5 {[%clk 0:00:06.1]} 72. bxc5+ {[%clk
0:00:06.8]} 72... Kxc5 {[%clk 0:00:07]} 73. a6 {[%clk 0:00:07.4]} 73... Kb6
{[%clk 0:00:07.5]} 0-1

[Event "Early-Titled-Tuesday-Blitz-April-02-2024"]
[Site "Chess.com"]
[Date "2024.04.02"]
[Round "9"]
[White "Meri-Arabidze"]
[Black "guillembaches"]
[Result "1-0"]
[WhiteElo "2690"]
[BlackElo "2560"]
[TimeControl "180+1"]
[EndTime "9:47:12 PDT"]
[Termination "Meri-Arabidze won on time"]

1. Nf3 {[%clk 0:02:56.9]} 1... d5 {[%clk 0:03:00.3]} 2. c4 {[%clk 0:02:56.7]}
2... e6 {[%clk 0:02:59.4]} 3. g3 {[%clk 0:02:56.5]} 3... Nf6 {[%clk 0:02:59.7]}
4. Bg2 {[%clk 0:02:56.9]} 4... Bd6 {[%clk 0:02:59.8]} 5. O-O {[%clk 0:02:56.9]}
5... O-O {[%clk 0:03:00.1]} 6. b3 {[%clk 0:02:57.2]} 6... dxc4 {[%clk
0:02:59.4]} 7. bxc4 {[%clk 0:02:57.2]} 7... e5 {[%clk 0:02:59.7]} 8. d3 {[%clk
0:02:55.7]} 8... c6 {[%clk 0:02:56.9]} 9. Bb2 {[%clk 0:02:55.6]} 9... Re8 {[%clk
0:02:57]} 10. Nc3 {[%clk 0:02:47.6]} 10... Na6 {[%clk 0:02:56.7]} 11. Nd2 {[%clk
0:02:44.6]} 11... Nc5 {[%clk 0:02:55.9]} 12. Nb3 {[%clk 0:02:40.5]} 12... Bg4
{[%clk 0:02:48]} 13. h3 {[%clk 0:02:32.4]} 13... Bh5 {[%clk 0:02:46.5]} 14. Ba3
{[%clk 0:02:20.1]} 14... Ne6 {[%clk 0:02:34.6]} 15. Bxd6 {[%clk 0:02:07.8]}
15... Qxd6 {[%clk 0:02:34.3]} 16. Qd2 {[%clk 0:01:42.3]} 16... Rad8 {[%clk
0:02:29]} 17. Rab1 {[%clk 0:01:39.3]} 17... Re7 {[%clk 0:02:19.2]} 18. Na5
{[%clk 0:01:23.2]} 18... Nc5 {[%clk 0:02:09.9]} 19. Nb3 {[%clk 0:01:23.2]} 19...
Ne6 {[%clk 0:02:09.5]} 20. Na5 {[%clk 0:01:19.7]} 20... Nc5 {[%clk 0:02:09.7]}
21. Qc2 {[%clk 0:01:19.7]} 21... Bg6 {[%clk 0:01:54.9]} 22. Na4 {[%clk
0:01:18.3]} 22... Nxa4 {[%clk 0:01:29.2]} 23. Qxa4 {[%clk 0:01:19.2]} 23... Rdd7
{[%clk 0:01:26.1]} 24. Rfc1 {[%clk 0:01:10.9]} 24... e4 {[%clk 0:01:17.5]} 25.
c5 {[%clk 0:01:10.9]} 25... Qe5 {[%clk 0:01:10.1]} 26. Nc4 {[%clk 0:01:05]}
26... Qh5 {[%clk 0:00:53.2]} 27. g4 {[%clk 0:01:02.7]} 27... Qh4 {[%clk
0:00:46.6]} 28. Nd6 {[%clk 0:00:57.2]} 28... exd3 {[%clk 0:00:38.8]} 29. exd3
{[%clk 0:00:58.1]} 29... h5 {[%clk 0:00:34.7]} 30. Rb4 {[%clk 0:00:40.7]} 30...
hxg4 {[%clk 0:00:31.9]} 31. hxg4 {[%clk 0:00:41.6]} 31... Bxd3 {[%clk
0:00:28.1]} 32. Qb3 {[%clk 0:00:36.2]} 32... Ba6 {[%clk 0:00:21.6]} 33. Nf5
{[%clk 0:00:31.8]} 33... Qg5 {[%clk 0:00:19.7]} 34. Nxe7+ {[%clk 0:00:32.1]}
34... Rxe7 {[%clk 0:00:20.2]} 35. Rd1 {[%clk 0:00:26.3]} 35... Nd5 {[%clk
0:00:19]} 36. Bxd5 {[%clk 0:00:25.1]} 36... cxd5 {[%clk 0:00:18.4]} 37. Qg3
{[%clk 0:00:23.9]} 37... Bc4 {[%clk 0:00:15.4]} 38. c6 {[%clk 0:00:15.1]} 38...
bxc6 {[%clk 0:00:14.7]} 39. Rb8+ {[%clk 0:00:15.1]} 39... Kh7 {[%clk 0:00:14.9]}
40. Kg2 {[%clk 0:00:15.5]} 40... Re6 {[%clk 0:00:13.1]} 41. Rh1+ {[%clk
0:00:13.5]} 41... Rh6 {[%clk 0:00:12.5]} 42. Rxh6+ {[%clk 0:00:13.7]} 42... Qxh6
{[%clk 0:00:12.9]} 43. Qe5 {[%clk 0:00:10.3]} 43... Qg6 {[%clk 0:00:10.7]} 44.
Qh2+ {[%clk 0:00:08.7]} 44... Qh6 {[%clk 0:00:10.7]} 45. Qxh6+ {[%clk
0:00:08.7]} 45... Kxh6 {[%clk 0:00:11.1]} 46. f4 {[%clk 0:00:07.4]} 46... Bxa2
{[%clk 0:00:10.6]} 47. Rb7 {[%clk 0:00:07]} 47... Bc4 {[%clk 0:00:09.9]} 48.
Rxa7 {[%clk 0:00:07.1]} 48... Kg6 {[%clk 0:00:10.1]} 49. Kf3 {[%clk 0:00:06.8]}
49... Kf6 {[%clk 0:00:09.9]} 50. Ke3 {[%clk 0:00:06.2]} 50... g6 {[%clk
0:00:08.9]} 51. Rc7 {[%clk 0:00:05.9]} 51... Ke6 {[%clk 0:00:08.8]} 52. Rxc6+
{[%clk 0:00:05.7]} 52... Ke7 {[%clk 0:00:09.1]} 53. Rc7+ {[%clk 0:00:05.5]}
53... Ke6 {[%clk 0:00:09.2]} 54. Kd4 {[%clk 0:00:05.7]} 54... Kd6 {[%clk
0:00:09.4]} 55. Rxf7 {[%clk 0:00:05.5]} 55... Ke6 {[%clk 0:00:09.9]} 56. Rg7
{[%clk 0:00:05.8]} 56... Kf6 {[%clk 0:00:10.4]} 57. Rc7 {[%clk 0:00:06.3]} 57...
Ke6 {[%clk 0:00:10.8]} 58. Rc6+ {[%clk 0:00:05.2]} 58... Kf7 {[%clk 0:00:11]}
59. Ke5 {[%clk 0:00:05.3]} 59... Bd3 {[%clk 0:00:11.2]} 60. Rc7+ {[%clk
0:00:05]} 60... Kg8 {[%clk 0:00:11]} 61. Kf6 {[%clk 0:00:04.7]} 61... Be4 {[%clk
0:00:11.3]} 62. Rd7 {[%clk 0:00:04.4]} 62... Kh8 {[%clk 0:00:10.9]} 63. g5
{[%clk 0:00:02.9]} 63... Kg8 {[%clk 0:00:10.9]} 64. Rd8+ {[%clk 0:00:03.1]}
64... Kh7 {[%clk 0:00:11.2]} 65. Rd7+ {[%clk 0:00:04]} 65... Kg8 {[%clk
0:00:11.6]} 66. Re7 {[%clk 0:00:04.8]} 66... Kh8 {[%clk 0:00:11.3]} 67. Re8+
{[%clk 0:00:04.7]} 67... Kh7 {[%clk 0:00:11.4]} 68. Rb8 {[%clk 0:00:05.4]} 68...
Bf5 {[%clk 0:00:10.5]} 69. Rd8 {[%clk 0:00:05.1]} 69... Be4 {[%clk 0:00:10.6]}
70. Ke5 {[%clk 0:00:05.5]} 70... Kg7 {[%clk 0:00:10.7]} 71. Rd7+ {[%clk
0:00:06.1]} 71... Kg8 {[%clk 0:00:10.9]} 72. Re7 {[%clk 0:00:06.3]} 72... Kf8
{[%clk 0:00:11]} 73. Ra7 {[%clk 0:00:06.4]} 73... Kg8 {[%clk 0:00:11.4]} 74. Ra4
{[%clk 0:00:06.6]} 74... Kf7 {[%clk 0:00:11.5]} 75. Rd4 {[%clk 0:00:06.2]} 75...
Kg8 {[%clk 0:00:11.3]} 76. Rxe4 {[%clk 0:00:06.5]} 76... dxe4 {[%clk 0:00:11.1]}
77. Kxe4 {[%clk 0:00:07.4]} 77... Kf7 {[%clk 0:00:11]} 78. Kd5 {[%clk
0:00:07.8]} 78... Ke7 {[%clk 0:00:09.5]} 79. Ke5 {[%clk 0:00:08.2]} 79... Kf7
{[%clk 0:00:10]} 80. Kd6 {[%clk 0:00:08.6]} 80... Kg8 {[%clk 0:00:08.8]} 81. Ke6
{[%clk 0:00:08.7]} 81... Kg7 {[%clk 0:00:09.3]} 82. Ke7 {[%clk 0:00:09.3]} 82...
Kg8 {[%clk 0:00:09.7]} 83. Kf6 {[%clk 0:00:09.5]} 83... Kh7 {[%clk 0:00:09.9]}
84. Kf7 {[%clk 0:00:10.1]} 1-0

[Event "Early-Titled-Tuesday-Blitz-April-02-2024"]
[Site "Chess.com"]
[Date "2024.04.02"]
[Round "9"]
[White "tactic"]
[Black "Balla_Tamas"]
[Result "0-1"]
[WhiteElo "2585"]
[BlackElo "2485"]
[TimeControl "180+1"]
[EndTime "9:47:31 PDT"]
[Termination "Balla_Tamas won on time"]

1. e4 {[%clk 0:03:00.9]} 1... c5 {[%clk 0:02:54.6]} 2. c3 {[%clk 0:03:00.7]}
2... Nf6 {[%clk 0:02:54]} 3. e5 {[%clk 0:03:01.4]} 3... Nd5 {[%clk 0:02:54.5]}
4. Nf3 {[%clk 0:03:02.2]} 4... Nc6 {[%clk 0:02:54.6]} 5. Na3 {[%clk 0:03:02.9]}
5... e6 {[%clk 0:02:48.9]} 6. g3 {[%clk 0:03:02.3]} 6... Be7 {[%clk 0:02:44.3]}
7. Bg2 {[%clk 0:03:02.3]} 7... O-O {[%clk 0:02:44.4]} 8. O-O {[%clk 0:03:02.7]}
8... b6 {[%clk 0:02:44.8]} 9. Qe2 {[%clk 0:03:01.2]} 9... Bb7 {[%clk 0:02:44.9]}
10. Nc4 {[%clk 0:02:58.5]} 10... d6 {[%clk 0:02:41.7]} 11. exd6 {[%clk
0:02:51.4]} 11... Bxd6 {[%clk 0:02:39.3]} 12. Nxd6 {[%clk 0:02:52]} 12... Qxd6
{[%clk 0:02:37.3]} 13. d3 {[%clk 0:02:37.9]} 13... Nf6 {[%clk 0:02:36.1]} 14.
Rd1 {[%clk 0:02:36.6]} 14... Rad8 {[%clk 0:02:33.9]} 15. Bf4 {[%clk 0:02:35.2]}
15... Qd7 {[%clk 0:02:30.9]} 16. d4 {[%clk 0:02:29.3]} 16... cxd4 {[%clk
0:02:30.5]} 17. Nxd4 {[%clk 0:02:29.4]} 17... Nxd4 {[%clk 0:02:27.8]} 18. Rxd4
{[%clk 0:02:30.3]} 18... Qe7 {[%clk 0:02:26.7]} 19. Rad1 {[%clk 0:02:26.1]}
19... Bxg2 {[%clk 0:02:25.5]} 20. Kxg2 {[%clk 0:02:23.7]} 20... Rxd4 {[%clk
0:02:24.7]} 21. Rxd4 {[%clk 0:02:23.6]} 21... Nd5 {[%clk 0:02:15.8]} 22. Bd2
{[%clk 0:02:07.8]} 22... Qb7 {[%clk 0:02:02.3]} 23. Qf3 {[%clk 0:02:08.2]} 23...
Qa6 {[%clk 0:02:02.7]} 24. a3 {[%clk 0:02:04.8]} 24... Ne7 {[%clk 0:01:58.2]}
25. Rd7 {[%clk 0:02:01]} 25... Ng6 {[%clk 0:01:55.7]} 26. Qe4 {[%clk 0:01:57.1]}
26... Qb5 {[%clk 0:01:53.7]} 27. Rxa7 {[%clk 0:01:49.8]} 27... Qxb2 {[%clk
0:01:51.8]} 28. Be3 {[%clk 0:01:50.6]} 28... h6 {[%clk 0:01:42.2]} 29. Qb7
{[%clk 0:01:50]} 29... Qxc3 {[%clk 0:01:38.3]} 30. Bxb6 {[%clk 0:01:49]} 30...
h5 {[%clk 0:01:27.3]} 31. Qc7 {[%clk 0:01:37.5]} 31... Qd3 {[%clk 0:01:15.3]}
32. Qc6 {[%clk 0:01:02.6]} 32... h4 {[%clk 0:01:05.4]} 33. Be3 {[%clk
0:00:55.9]} 33... Ne5 {[%clk 0:00:50.5]} 34. Qb7 {[%clk 0:00:37.4]} 34... Rd8
{[%clk 0:00:50.1]} 35. Bf4 {[%clk 0:00:28.5]} 35... h3+ {[%clk 0:00:26.9]} 36.
Kxh3 {[%clk 0:00:28.7]} 36... Qf5+ {[%clk 0:00:24.1]} 37. Kg2 {[%clk 0:00:28.6]}
37... Nd3 {[%clk 0:00:24.6]} 38. Be3 {[%clk 0:00:25.2]} 38... Rd5 {[%clk
0:00:24.9]} 39. Ra4 {[%clk 0:00:20.5]} 39... Ne1+ {[%clk 0:00:22.3]} 40. Kf1
{[%clk 0:00:15.1]} 40... Rd1 {[%clk 0:00:22.6]} 41. Qa8+ {[%clk 0:00:12.3]}
41... Kh7 {[%clk 0:00:20]} 42. Qe4 {[%clk 0:00:10.5]} 42... Nf3+ {[%clk
0:00:18]} 43. Ke2 {[%clk 0:00:08]} 43... Re1+ {[%clk 0:00:18.4]} 44. Kd3 {[%clk
0:00:08.7]} 44... Ne5+ {[%clk 0:00:03.9]} 45. Kc2 {[%clk 0:00:08.6]} 45... Re2+
{[%clk 0:00:03.7]} 46. Kd1 {[%clk 0:00:08.8]} 46... Ra2 {[%clk 0:00:01.7]} 47.
Qxf5+ {[%clk 0:00:08.1]} 47... exf5 {[%clk 0:00:02.6]} 48. Ra5 {[%clk
0:00:07.2]} 48... Nf3 {[%clk 0:00:03.1]} 49. Kc1 {[%clk 0:00:06.6]} 49... Nxh2
{[%clk 0:00:02.7]} 50. Rxf5 {[%clk 0:00:07.3]} 50... Ng4 {[%clk 0:00:02.4]} 51.
Bc5 {[%clk 0:00:06.2]} 51... f6 {[%clk 0:00:01.6]} 52. Rf4 {[%clk 0:00:06.6]}
52... Ne5 {[%clk 0:00:02]} 53. Kb1 {[%clk 0:00:06.8]} 53... Re2 {[%clk
0:00:01.8]} 54. Rc4 {[%clk 0:00:06.8]} 54... Nd3 {[%clk 0:00:02.4]} 55. Be3
{[%clk 0:00:04]} 55... Nxf2 {[%clk 0:00:02.6]} 56. Bxf2 {[%clk 0:00:04.4]} 56...
Rxf2 {[%clk 0:00:03.5]} 57. Rc3 {[%clk 0:00:04.9]} 57... Rf5 {[%clk 0:00:03.5]}
58. Kb2 {[%clk 0:00:05.8]} 58... Kg6 {[%clk 0:00:03.7]} 59. a4 {[%clk
0:00:06.3]} 59... Kg5 {[%clk 0:00:04.3]} 60. Ra3 {[%clk 0:00:06.6]} 60... Kg4
{[%clk 0:00:04.6]} 61. a5 {[%clk 0:00:06.9]} 61... Rd5 {[%clk 0:00:05.1]} 62. a6
{[%clk 0:00:07.2]} 62... Rd8 {[%clk 0:00:05.6]} 63. a7 {[%clk 0:00:07.5]} 63...
Ra8 {[%clk 0:00:06.3]} 64. Kb3 {[%clk 0:00:08.1]} 64... f5 {[%clk 0:00:06.7]}
65. Kb4 {[%clk 0:00:08.7]} 65... g5 {[%clk 0:00:07.4]} 66. Kb5 {[%clk
0:00:09.4]} 66... f4 {[%clk 0:00:08]} 67. gxf4 {[%clk 0:00:10.3]} 67... gxf4
{[%clk 0:00:08.6]} 68. Ra4 {[%clk 0:00:10.8]} 68... Kg3 {[%clk 0:00:08.5]} 69.
Ka6 {[%clk 0:00:11.4]} 69... f3 {[%clk 0:00:08.6]} 70. Ra3 {[%clk 0:00:12]}
70... Kg2 {[%clk 0:00:08.7]} 71. Ra5 {[%clk 0:00:12.5]} 71... f2 {[%clk
0:00:08.9]} 72. Rg5+ {[%clk 0:00:13.3]} 72... Kh1 {[%clk 0:00:08.9]} 73. Rh5+
{[%clk 0:00:13.7]} 73... Kg1 {[%clk 0:00:09.4]} 74. Rg5+ {[%clk 0:00:14.6]}
74... Kh1 {[%clk 0:00:10]} 75. Rh5+ {[%clk 0:00:15.2]} 75... Kg1 {[%clk
0:00:10.6]} 76. Kb7 {[%clk 0:00:16]} 76... Rxa7+ {[%clk 0:00:10.5]} 77. Kxa7
{[%clk 0:00:16.9]} 77... f1=Q {[%clk 0:00:10.9]} 78. Rg5+ {[%clk 0:00:16.7]}
78... Kh2 {[%clk 0:00:11.4]} 79. Rc5 {[%clk 0:00:16.5]} 79... Kg3 {[%clk
0:00:08.1]} 80. Kb6 {[%clk 0:00:15.1]} 80... Qb1+ {[%clk 0:00:08]} 81. Kc6
{[%clk 0:00:14.8]} 81... Kf4 {[%clk 0:00:07.5]} 82. Rc4+ {[%clk 0:00:15.3]}
82... Ke5 {[%clk 0:00:07.2]} 83. Kc5 {[%clk 0:00:15.5]} 83... Qg1+ {[%clk
0:00:06.5]} 84. Kb4 {[%clk 0:00:15.8]} 84... Kd5 {[%clk 0:00:06.6]} 85. Kb3
{[%clk 0:00:13.6]} 85... Qb1+ {[%clk 0:00:06.2]} 86. Kc3 {[%clk 0:00:11.5]}
86... Qc1+ {[%clk 0:00:06.4]} 87. Kb3 {[%clk 0:00:12.1]} 87... Qxc4+ {[%clk
0:00:07.3]} 88. Ka3 {[%clk 0:00:12.7]} 88... Qb5 {[%clk 0:00:07.7]} 89. Ka2
{[%clk 0:00:13.2]} 89... Qb4 {[%clk 0:00:08.3]} 0-1

[Event "Early-Titled-Tuesday-Blitz-April-02-2024"]
[Site "Chess.com"]
[Date "2024.04.02"]
[Round "9"]
[White "Blackwhite017"]
[Black "zeitnotakrobat"]
[Result "1-0"]
[WhiteElo "2087"]
[BlackElo "2178"]
[TimeControl "180+1"]
[EndTime "9:47:46 PDT"]
[Termination "Blackwhite017 won by resignation"]

1. e4 {[%clk 0:03:00]} 1... c5 {[%clk 0:02:59.4]} 2. Nf3 {[%clk 0:03:00.3]} 2...
Nc6 {[%clk 0:02:59.4]} 3. d4 {[%clk 0:03:00.4]} 3... cxd4 {[%clk 0:02:59.6]} 4.
Nxd4 {[%clk 0:03:01.3]} 4... Qc7 {[%clk 0:03:00]} 5. Nc3 {[%clk 0:02:59.4]} 5...
e6 {[%clk 0:02:59.9]} 6. Nxc6 {[%clk 0:02:57.8]} 6... bxc6 {[%clk 0:02:59.3]} 7.
Bd3 {[%clk 0:02:58.1]} 7... Nf6 {[%clk 0:02:55.8]} 8. O-O {[%clk 0:02:57.4]}
8... Be7 {[%clk 0:02:46.2]} 9. Qf3 {[%clk 0:02:57.2]} 9... e5 {[%clk 0:02:37.1]}
10. Qg3 {[%clk 0:02:33.9]} 10... g6 {[%clk 0:02:32.5]} 11. f4 {[%clk 0:02:28.7]}
11... Nh5 {[%clk 0:02:31.8]} 12. Qf2 {[%clk 0:02:11.5]} 12... exf4 {[%clk
0:02:19.8]} 13. Bxf4 {[%clk 0:02:11.8]} 13... Nxf4 {[%clk 0:02:17.5]} 14. Qxf4
{[%clk 0:02:12.7]} 14... Qxf4 {[%clk 0:02:16.3]} 15. Rxf4 {[%clk 0:02:12.5]}
15... Bd6 {[%clk 0:02:13.3]} 16. Rf6 {[%clk 0:02:03.3]} 16... Be5 {[%clk
0:02:12.9]} 17. Rff1 {[%clk 0:01:59]} 17... Rb8 {[%clk 0:01:56.1]} 18. Rab1
{[%clk 0:01:57.5]} 18... f6 {[%clk 0:01:49.3]} 19. Na4 {[%clk 0:01:53]} 19... d6
{[%clk 0:01:45.2]} 20. b3 {[%clk 0:01:51.4]} 20... Ke7 {[%clk 0:01:43.3]} 21.
Nb2 {[%clk 0:01:50.4]} 21... Be6 {[%clk 0:01:35.8]} 22. Nc4 {[%clk 0:01:48.1]}
22... Bd4+ {[%clk 0:01:28]} 23. Kh1 {[%clk 0:01:47]} 23... Rhc8 {[%clk
0:01:19.6]} 24. Rbe1 {[%clk 0:01:37.6]} 24... Ra8 {[%clk 0:01:15.7]} 25. a4
{[%clk 0:01:36.6]} 25... Rab8 {[%clk 0:01:12.1]} 26. h3 {[%clk 0:01:36.4]} 26...
Rd8 {[%clk 0:01:08.8]} 27. Re2 {[%clk 0:01:34.5]} 27... Kf7 {[%clk 0:01:04.5]}
28. Kh2 {[%clk 0:01:32.8]} 28... Kg7 {[%clk 0:01:04.5]} 29. g3 {[%clk
0:01:30.6]} 29... h5 {[%clk 0:00:59.3]} 30. h4 {[%clk 0:01:30.2]} 30... Bg4
{[%clk 0:00:56.7]} 31. Rd2 {[%clk 0:01:25.6]} 31... Bc3 {[%clk 0:00:51]} 32.
Rdf2 {[%clk 0:01:24.1]} 32... Bd4 {[%clk 0:00:51.3]} 33. Rf4 {[%clk 0:01:21.1]}
33... Rd7 {[%clk 0:00:42.8]} 34. e5 {[%clk 0:00:41.3]} 34... Bxe5 {[%clk
0:00:38]} 35. Nxe5 {[%clk 0:00:41.1]} 35... fxe5 {[%clk 0:00:37]} 36. Rf6 {[%clk
0:00:41.1]} 36... Bf5 {[%clk 0:00:32.5]} 37. Bxf5 {[%clk 0:00:38.2]} 37... gxf5
{[%clk 0:00:32.4]} 38. R6xf5 {[%clk 0:00:37.6]} 38... Re8 {[%clk 0:00:31]} 39.
Rxh5 {[%clk 0:00:32.9]} 39... Re6 {[%clk 0:00:29.9]} 40. Rg5+ {[%clk 0:00:30.4]}
40... Rg6 {[%clk 0:00:29.6]} 41. Rgf5 {[%clk 0:00:26.1]} 41... Re7 {[%clk
0:00:27]} 42. h5 {[%clk 0:00:21.4]} 42... Rge6 {[%clk 0:00:23]} 43. g4 {[%clk
0:00:17]} 43... e4 {[%clk 0:00:23.1]} 44. g5 {[%clk 0:00:16.4]} 44... e3 {[%clk
0:00:22.5]} 45. Re1 {[%clk 0:00:11.5]} 45... d5 {[%clk 0:00:21.6]} 46. c3 {[%clk
0:00:09.5]} 46... Re4 {[%clk 0:00:19.9]} 47. Rf3 {[%clk 0:00:08.2]} 47... e2
{[%clk 0:00:19.1]} 48. Kg2 {[%clk 0:00:07.2]} 48... R7e5 {[%clk 0:00:18.5]} 49.
g6 {[%clk 0:00:06.6]} 49... Rxh5 {[%clk 0:00:17.6]} 50. Rf2 {[%clk 0:00:05.4]}
50... Rg5+ {[%clk 0:00:17]} 51. Kf3 {[%clk 0:00:04.2]} 51... Rxg6 {[%clk
0:00:16.1]} 52. Rfxe2 {[%clk 0:00:03.8]} 52... Rf6+ {[%clk 0:00:15.5]} 53. Kg3
{[%clk 0:00:03.6]} 53... Rxe2 {[%clk 0:00:15.5]} 54. Rxe2 {[%clk 0:00:04.5]}
54... Kf7 {[%clk 0:00:16]} 55. Re3 {[%clk 0:00:04.8]} 55... Rg6+ {[%clk
0:00:15.7]} 56. Kf3 {[%clk 0:00:04.8]} 56... Rf6+ {[%clk 0:00:16]} 57. Ke2
{[%clk 0:00:05.2]} 57... Rh6 {[%clk 0:00:16]} 58. Kd3 {[%clk 0:00:05.5]} 58...
Rh2 {[%clk 0:00:15.4]} 59. Kd4 {[%clk 0:00:04.7]} 59... Rb2 {[%clk 0:00:13.9]}
60. b4 {[%clk 0:00:04.2]} 60... Ra2 {[%clk 0:00:13.8]} 61. a5 {[%clk 0:00:03.6]}
61... Rd2+ {[%clk 0:00:13.3]} 62. Kc5 {[%clk 0:00:03.5]} 62... Kf6 {[%clk
0:00:12.5]} 63. Kxc6 {[%clk 0:00:03.2]} 63... d4 {[%clk 0:00:12.7]} 64. cxd4
{[%clk 0:00:03.4]} 64... Rxd4 {[%clk 0:00:12.9]} 65. Rb3 {[%clk 0:00:02.8]}
65... Ke6 {[%clk 0:00:12.1]} 66. Kb7 {[%clk 0:00:03.1]} 66... Rd7+ {[%clk
0:00:11.3]} 67. Kc6 {[%clk 0:00:03.2]} 67... Ke7 {[%clk 0:00:11]} 68. Rc3 {[%clk
0:00:03]} 68... Kd8 {[%clk 0:00:10.6]} 69. Rc5 {[%clk 0:00:02.6]} 69... Rc7+
{[%clk 0:00:09.6]} 70. Kb5 {[%clk 0:00:02.7]} 70... Rb7+ {[%clk 0:00:10]} 71.
Ka4 {[%clk 0:00:02.4]} 71... Rf7 {[%clk 0:00:10.3]} 72. Kb5 {[%clk 0:00:02.5]}
72... Rb7+ {[%clk 0:00:08.9]} 73. Ka4 {[%clk 0:00:02.5]} 73... Rh7 {[%clk
0:00:09.4]} 74. a6 {[%clk 0:00:03]} 74... Rh6 {[%clk 0:00:08.5]} 75. Ka5 {[%clk
0:00:03.2]} 75... Rg6 {[%clk 0:00:08.2]} 76. Rf5 {[%clk 0:00:03.5]} 76... Re6
{[%clk 0:00:07.9]} 77. Kb5 {[%clk 0:00:03.7]} 77... Kc7 {[%clk 0:00:07.7]} 78.
Rc5+ {[%clk 0:00:03.7]} 78... Kb8 {[%clk 0:00:07.5]} 79. Rg5 {[%clk 0:00:04.1]}
79... Rb6+ {[%clk 0:00:07.5]} 80. Ka5 {[%clk 0:00:04.4]} 80... Re6 {[%clk
0:00:07.6]} 81. b5 {[%clk 0:00:05.1]} 81... Rf6 {[%clk 0:00:07.4]} 82. Rg8+
{[%clk 0:00:05.3]} 82... Kc7 {[%clk 0:00:07.2]} 83. Rg7+ {[%clk 0:00:06.2]}
83... Kb8 {[%clk 0:00:07.4]} 84. Rb7+ {[%clk 0:00:06.8]} 84... Ka8 {[%clk
0:00:07.5]} 85. Rh7 {[%clk 0:00:05.7]} 85... Kb8 {[%clk 0:00:07.8]} 86. Rh8+
{[%clk 0:00:05.9]} 86... Kc7 {[%clk 0:00:07.9]} 87. Ra8 {[%clk 0:00:06.5]} 87...
Kd6 {[%clk 0:00:06.8]} 88. Rxa7 {[%clk 0:00:06.2]} 88... Rf1 {[%clk 0:00:07.5]}
89. Rb7 {[%clk 0:00:06]} 89... Ra1+ {[%clk 0:00:07.7]} 90. Kb6 {[%clk
0:00:06.5]} 90... Ra2 {[%clk 0:00:07.7]} 91. a7 {[%clk 0:00:06.9]} 91... Ra3
{[%clk 0:00:07.5]} 92. Rb8 {[%clk 0:00:07.1]} 92... Kd5 {[%clk 0:00:07.2]} 93.
a8=Q+ {[%clk 0:00:06.8]} 1-0